bitfinex/quotes_ETHUSD_20240820
["timestamp","ask_amount","ask_price","bid_price","bid_amount"]
[1724174723341,0.1812092,2583.2,2583.1,3.57174061]
[1724174733417,0.1812092,2583.2,2583.1,23.04174061]
[1724174733569,3.86962,2584.3,2583.4,0.3886]
[1724174733765,3.8697,2584.2,2583.9,2.3024]
[1724174733981,3.86962,2584.3,2583.9,2.3024]
[1724174734187,3.86938,2584.4,2583.9,2.3024]
[1724174734878,3.86953,2584.3,2583.9,2.3024]
[1724174735095,4.03381307,2584.3,2583.9,2.3024]
[1724174735613,4.03381307,2584.3,2584.0,0.55]
[1724174735770,4.03381307,2584.3,2584.0,19.8387908]
[1724174736665,0.16428307,2584.3,2584.0,19.8387908]
[1724174737824,0.16428307,2584.3,2584.1,2.4455]
[1724174738113,0.16428307,2584.3,2584.2,0.55]
[1724174738799,6.8691,2584.6,2584.2,0.55]
[1724174739009,0.16432839,2584.3,2584.2,2.8624]
[1724174739310,6.8691,2584.6,2584.2,2.8624]
[1724174739516,0.16432839,2584.3,2584.2,2.8624]
[1724174739667,6.8691,2584.6,2584.2,2.8624]
[1724174740023,0.1644327,2584.5,2584.4,2.4211]
[1724174740519,3.86894,2584.7,2584.4,2.9711]
[1724174740701,3.86894,2584.7,2584.5,0.55]
[1724174741013,3.86872,2584.9,2584.5,0.55]
[1724174741226,3.86872,2584.9,2584.6,2.4757]
[1724174741446,3.0,2584.8,2584.7,0.55]
[1724174743419,6.86877,2584.8,2584.7,0.55]
[1724174745527,3.0,2584.8,2584.7,0.55]
[1724174745693,6.86877,2584.8,2584.7,0.55]
[1724174746728,10.73754,2584.8,2584.7,0.55]
[1724174747024,7.73784,2584.7,2584.6,19.2887908]
[1724174747293,10.73784,2584.7,2584.6,19.2887908]
[1724174747904,6.86892,2584.7,2584.6,19.2887908]
[1724174748339,6.86892,2584.7,2584.6,21.5932908]
[1724174748541,8.89292,2584.7,2584.6,21.5932908]
[1724174748959,3.0,2584.7,2584.6,22.1432908]
[1724174749251,3.0,2584.8,2584.6,22.1432908]
[1724174749419,3.0,2584.8,2584.7,0.55]
[1724174750003,3.1646781,2584.8,2584.7,0.55]
[1724174750405,3.1646781,2584.8,2584.7,2.9049]
[1724174752265,3.1646781,2584.8,2584.7,22.1936908]
[1724174752869,7.0334481,2584.8,2584.7,22.1936908]
[1724174754246,10.9022181,2584.8,2584.7,19.2887908]
[1724174755452,10.9022181,2584.8,2584.7,19.8387908]
[1724174756440,3.1646781,2584.8,2584.7,22.0996908]
[1724174758059,3.1646781,2584.8,2584.7,2.8109]
[1724174760185,7.0334481,2584.8,2584.7,2.8109]
[1724174762371,10.9022181,2584.8,2584.7,2.8109]
[1724174763051,7.0334481,2584.8,2584.7,2.8109]
[1724174763261,3.1646781,2584.8,2584.7,2.8109]
[1724174763473,3.1646781,2584.8,2584.7,3.13085]
[1724174763879,0.1646781,2584.8,2584.7,3.13085]
[1724174765452,0.1646781,2584.8,2584.7,22.4196408]
[1724174766418,5.89217,2585.2,2584.8,2.3614]
[1724174766627,3.86835,2585.1,2585.0,2.3614]
[1724174767002,3.86835,2585.1,2585.0,2.9114]
[1724174767329,6.86835,2585.1,2585.0,2.9114]
[1724174767685,3.0,2585.1,2585.0,2.9114]
[1724174767889,3.0,2585.1,2585.0,3.43162741]
[1724174769011,6.86832,2585.1,2585.0,2.9114]
[1724174769873,6.86832,2585.1,2585.0,22.2001908]
[1724174770209,3.0,2585.1,2585.0,22.2001908]
[1724174771089,3.86832,2585.1,2585.0,22.2001908]
[1724174771292,6.86832,2585.1,2585.0,22.2001908]
[1724174771489,6.86832,2585.1,2585.0,24.64929729]
[1724174772027,6.86832,2585.1,2585.0,22.2001908]
[1724174772193,12.76064,2585.1,2585.0,22.2001908]
[1724174772733,6.86832,2585.1,2585.0,22.2001908]
[1724174774824,12.76064,2585.1,2585.0,22.2001908]
[1724174775393,8.89232,2585.1,2585.0,22.2001908]
[1724174775792,8.89232,2585.1,2585.0,2.9114]
[1724174776783,12.76064,2585.1,2585.0,2.9114]
[1724174778061,12.76064,2585.1,2585.0,0.55]
[1724174778206,7.73694,2585.0,2584.9,0.55]
[1724174778413,12.76094,2585.0,2584.9,0.55]
[1724174779370,6.86847,2585.0,2584.9,2.8388]
[1724174779551,6.86847,2585.0,2584.9,4.51424439]
[1724174780139,10.90172746,2585.0,2584.9,2.8388]
[1724174780335,7.03325746,2585.0,2584.9,2.8388]
[1724174781380,3.16478746,2585.0,2584.9,2.8388]
[1724174784347,7.03325746,2585.0,2584.9,2.8388]
[1724174788994,3.16478746,2585.0,2584.9,2.8388]
[1724174789127,3.16478746,2585.0,2584.9,5.05655908]
[1724174789128,0.16478746,2585.0,2584.9,5.05655908]
[1724174790837,0.16478746,2585.0,2584.9,2.8388]
[1724174790838,7.90172746,2585.0,2584.9,2.8388]
[1724174791159,7.90172746,2585.0,2584.8,0.05]
[1724174791160,7.73724,2584.9,2584.8,0.05]
[1724174791331,10.73724,2584.9,2584.8,0.05]
[1724174791537,10.90220333,2584.9,2584.8,0.05]
[1724174792646,10.90220333,2584.9,2584.8,0.6]
[1724174793382,12.92620333,2584.9,2584.8,2.9244]
[1724174794182,7.03358333,2584.9,2584.8,2.9244]
[1724174794344,6.86862,2584.9,2584.8,3.2557]
[1724174794638,7.03368081,2584.9,2584.8,2.9244]
[1724174795290,3.16506081,2584.9,2584.8,2.9244]
[1724174795444,0.16506081,2584.9,2584.8,2.9244]
[1724174799094,0.11506081,2584.9,2584.8,2.8744]
[1724174799250,4.27345299,2585.1,2584.8,2.8744]
[1724174799450,8.14185299,2585.1,2585.0,2.4105]
[1724174799702,11.14185299,2585.1,2585.0,22.2492908]
[1724174800188,13.16585299,2585.1,2585.0,22.2492908]
[1724174801170,17.03425299,2585.1,2585.0,19.8387908]
[1724174801388,17.03425299,2585.1,2585.0,19.2887908]
[1724174802090,13.16585299,2585.1,2585.0,19.2887908]
[1724174802388,11.14185299,2585.1,2585.0,19.2887908]
[1724174802592,11.14185299,2585.1,2585.0,22.2492908]
[1724174803493,7.27345299,2585.1,2585.0,22.2492908]
[1724174803665,3.40509299,2585.1,2585.0,22.2492908]
[1724174803866,3.40509299,2585.1,2585.0,24.47421988]
[1724174805687,3.40509299,2585.1,2585.0,5.18542908]
[1724174805846,3.40509299,2585.1,2585.0,2.9605]
[1724174806645,3.56730167,2585.1,2585.0,2.9605]
[1724174812173,0.56730167,2585.1,2585.0,2.9605]
[1724174815566,4.43562167,2585.1,2585.0,2.9605]
[1724174816120,8.30394167,2585.1,2585.0,2.9605]
[1724174816547,4.43562167,2585.1,2585.0,2.9605]
[1724174820444,8.30394167,2585.1,2585.0,0.55]
[1724174820777,3.86853,2585.0,2584.9,0.55]
[1724174821127,3.86862,2584.9,2584.8,21.7299908]
[1724174821442,10.89970293,2584.9,2584.8,22.1180908]
[1724174821830,10.89970293,2584.9,2584.8,19.6768908]
[1724174822143,10.89970293,2584.9,2584.7,0.3881]
[1724174822345,2.024,2584.7,2584.6,2.3684]
[1724174822543,2.024,2584.7,2584.6,2.7565]
[1724174822544,9.76184,2584.7,2584.6,2.7565]
[1724174822931,3.86937,2584.4,2584.3,21.6150908]
[1724174823136,7.90104534,2584.4,2584.3,21.6150908]
[1724174823331,7.90104534,2584.4,2584.3,22.0031908]
[1724174823575,0.16230534,2584.4,2584.3,22.0031908]
[1724174824172,6.86916,2584.6,2584.3,22.0031908]
[1724174824346,0.16206344,2584.4,2584.3,21.9691908]
[1724174824547,6.86915,2584.6,2584.3,25.45710988]
[1724174824748,3.0,2584.6,2584.5,2.2923]
[1724174824946,3.40515837,2584.7,2584.5,2.8423]
[1724174825148,0.16198438,2584.6,2584.5,2.2923]
[1724174825348,0.16198438,2584.6,2584.5,5.118138]
[1724174825675,0.16198438,2584.6,2584.5,5.506238]
[1724174826838,0.16198438,2584.6,2584.5,24.7950288]
[1724174827033,8.1413127,2585.3,2584.7,0.3881]
[1724174827371,0.16235069,2585.2,2584.9,2.3308]
[1724174827571,0.16235069,2585.2,2585.0,0.87689]
[1724174827885,8.1413127,2585.3,2585.1,2.8808]
[1724174828054,3.86817,2585.2,2585.1,2.3308]
[1724174828258,3.86817,2585.2,2585.1,2.8808]
[1724174828475,7.03052069,2585.2,2585.1,2.8808]
[1724174829261,10.89869069,2585.2,2585.1,2.8808]
[1724174829455,7.03052069,2585.2,2585.1,2.8808]
[1724174830164,10.89869069,2585.2,2585.1,2.8808]
[1724174831054,7.03052069,2585.2,2585.1,2.8808]
[1724174831466,10.89869069,2585.2,2585.1,2.8808]
[1724174831779,7.03052069,2585.2,2585.1,2.8808]
[1724174832568,10.89869069,2585.2,2585.1,2.8808]
[1724174833438,10.89869069,2585.2,2585.1,0.55]
[1724174833667,3.86832,2585.1,2585.0,0.55]
[1724174833877,4.02567424,2585.1,2585.0,0.55]
[1724174834177,7.89402424,2585.1,2585.0,0.55]
[1724174835396,7.89402424,2585.1,2585.0,2.8358]
[1724174835955,4.02567424,2585.1,2585.0,2.8358]
[1724174836193,0.15735424,2585.1,2585.0,2.8358]
[1724174836496,4.02567424,2585.1,2585.0,2.8358]
[1724174838365,0.15735424,2585.1,2585.0,24.37585988]
[1724174842539,0.15735424,2585.1,2585.0,24.76395988]
[1724174842684,0.4050927,2585.3,2585.0,22.47815988]
[1724174842882,0.15168273,2585.2,2585.1,2.9009575]
[1724174843080,0.4050927,2585.3,2585.1,22.72599254]
[1724174843321,3.86765,2585.6,2585.2,2.4355]
[1724174843475,0.15178695,2585.5,2585.3,2.4653]
[1724174843680,4.27240176,2585.8,2585.2,0.9381]
[1724174843681,3.86751,2585.7,2585.4,3.0153]
[1724174844012,4.01942051,2585.6,2585.5,0.55]
[1724174844580,10.88699051,2585.6,2585.5,0.55]
[1724174848622,7.01942051,2585.6,2585.5,0.55]
[1724174850421,7.01942051,2585.6,2585.5,2.9683]
[1724174850643,8.70442051,2585.6,2585.5,2.9683]
[1724174854922,12.57199051,2585.6,2585.5,2.9683]
[1724174856114,8.70442051,2585.6,2585.5,2.9683]
[1724174860129,12.57199051,2585.6,2585.5,2.9683]
[1724174860330,12.57199051,2585.6,2585.5,0.55]
[1724174860530,7.73544,2585.5,2585.4,0.55]
[1724174860860,12.57242683,2585.5,2585.4,0.55]
[1724174861356,12.97745848,2585.5,2585.4,0.55]
[1724174861720,11.29245848,2585.5,2585.4,0.55]
[1724174861926,12.97745848,2585.5,2585.4,0.55]
[1724174866330,12.97745848,2585.5,2585.4,3.0055]
[1724174866567,9.10973848,2585.5,2585.4,3.30605]
[1724174869399,9.10973848,2585.5,2585.4,3.0055]
[1724174870589,12.97745848,2585.5,2585.4,3.0055]
[1724174870797,3.86832,2585.1,2585.0,7.7981]
[1724174871092,9.42164,2585.1,2585.0,19.6768908]
[1724174871302,9.57340996,2585.1,2585.0,19.6768908]
[1724174871452,9.57340996,2585.1,2585.0,22.0652908]
[1724174872265,9.57340996,2585.1,2585.0,22.6152908]
[1724174873359,9.57340996,2585.1,2585.0,3.3265]
[1724174874460,9.57340996,2585.1,2584.2,2.3927]
[1724174874461,3.86873,2584.9,2584.2,2.3927]
[1724174874688,4.02040485,2584.8,2584.3,2.3927]
[1724174875296,4.02040485,2584.8,2584.4,0.3881]
[1724174875491,0.15157485,2584.8,2584.7,2.7808]
[1724174875810,0.15157485,2584.8,2584.7,3.2377]
[1724174876819,6.86848,2585.0,2584.9,0.3881]
[1724174876993,6.86848,2585.0,2584.9,3.4027]
[1724174877605,10.73701,2585.0,2584.9,3.4027]
[1724174879504,6.86848,2585.0,2584.9,3.4027]
[1724174879690,3.0,2585.0,2584.9,3.4027]
[1724174880037,3.0,2585.0,2584.9,22.6914908]
[1724174880327,6.86847,2585.0,2584.9,22.6914908]
[1724174880491,10.73694,2585.0,2584.9,22.6914908]
[1724174880891,10.73694,2585.0,2584.9,0.55]
[1724174881119,3.86921,2584.6,2584.4,0.3881]
[1724174881420,3.86921,2584.6,2583.9,1.685]
[1724174881421,3.86921,2584.6,2584.5,2.6483]
[1724174881586,3.86878,2584.8,2584.5,2.6483]
[1724174882714,3.86878,2584.8,2584.1,1.685]
[1724174882715,3.86878,2584.8,2584.7,2.6472]
[1724174882919,6.86878,2584.8,2584.7,3.1972]
[1724174884358,3.0,2584.8,2584.7,3.1972]
[1724174884568,3.0,2584.8,2584.7,3.51692]
[1724174885127,3.15145448,2584.8,2584.7,3.51692]
[1724174885327,7.02022448,2584.8,2584.7,3.51692]
[1724174885639,7.02022448,2584.8,2584.7,3.1972]
[1724174886925,10.88899448,2584.8,2584.7,3.1972]
[1724174891160,14.75776448,2584.8,2584.7,3.1972]
[1724174891537,14.75776448,2584.8,2584.7,0.9381]
[1724174891766,15.1629053,2584.8,2584.7,0.9381]
[1724174892568,11.60676,2584.7,2584.6,0.3881]
[1724174892725,16.29176,2584.7,2584.6,0.3881]
[1724174892921,10.88959527,2584.7,2584.6,0.3881]
[1724174893122,12.57459527,2584.7,2584.6,0.3881]
[1724174893925,12.57459527,2584.7,2584.6,0.9381]
[1724174897275,16.44351527,2584.7,2584.6,0.3881]
[1724174897588,20.75096915,2584.7,2584.6,0.3881]
[1724174900039,20.31243527,2584.7,2584.6,0.3881]
[1724174900732,16.44351527,2584.7,2584.6,0.3881]
[1724174902830,20.31243527,2584.7,2584.6,0.3881]
[1724174903323,16.44351527,2584.7,2584.6,0.3881]
[1724174903936,20.31243527,2584.7,2584.6,0.3881]
[1724174905105,11.60721,2584.6,2584.5,2.4046]
[1724174905442,14.60721,2584.6,2584.5,2.4046]
[1724174905601,14.7582737,2584.6,2584.5,2.4046]
[1724174909916,14.7582737,2584.6,2584.5,2.9546]
[1724174911839,10.8892037,2584.6,2584.5,2.9546]
[1724174912026,10.8892037,2584.6,2584.5,2.95367113]
[1724174912204,12.5742037,2584.6,2584.5,2.95367113]
[1724174912804,9.5742037,2584.6,2584.5,2.95367113]
[1724174914513,12.5742037,2584.6,2584.5,2.95367113]
[1724174916314,16.4432737,2584.6,2584.5,2.95367113]
[1724174916929,12.5742037,2584.6,2584.5,2.95367113]
[1724174919438,12.5762037,2584.6,2584.5,2.95367113]
[1724174922907,10.8892037,2584.6,2584.5,2.95367113]
[1724174923056,10.8892037,2584.6,2584.5,3.34177113]
[1724174923862,10.8892037,2584.6,2584.5,3.67594824]
[1724174924671,3.1510637,2584.6,2584.5,3.67594824]
[1724174925673,3.1510637,2584.6,2584.5,3.34177113]
[1724174926181,12.5762037,2584.6,2584.5,3.34177113]
[1724174928084,8.7071337,2584.6,2584.5,3.34177113]
[1724174929861,12.5762037,2584.6,2584.5,3.34177113]
[1724174930032,12.5762037,2584.6,2584.5,2.95367113]
[1724174930235,16.4452737,2584.6,2584.5,2.40367113]
[1724174930930,12.5762037,2584.6,2584.5,2.40367113]
[1724174931681,12.5762037,2584.6,2584.5,2.95367113]
[1724174934452,3.86995,2584.1,2584.0,2.3222]
[1724174934653,5.55695,2584.1,2584.0,2.3222]
[1724174934832,5.55695,2584.1,2584.0,2.8722]
[1724174935038,8.70818312,2584.1,2584.0,2.8722]
[1724174936380,12.57813312,2584.1,2584.0,2.8722]
[1724174939084,8.70818312,2584.1,2584.0,2.8722]
[1724174939292,8.70818312,2584.1,2584.0,3.2603]
[1724174941200,12.57813312,2584.1,2584.0,3.2603]
[1724174941570,12.57813312,2584.1,2584.0,2.8722]
[1724174944303,8.70818312,2584.1,2584.0,2.8722]
[1724174945495,12.57813312,2584.1,2584.0,2.8722]
[1724174949908,7.02118312,2584.1,2584.0,2.8722]
[1724174950074,8.70818312,2584.1,2584.0,2.8722]
[1724174951013,12.57813312,2584.1,2584.0,2.8722]
[1724174951884,16.44808312,2584.1,2584.0,0.55]
[1724174952088,3.86996,2584.0,2583.8,2.8304]
[1724174952387,4.83791951,2583.9,2583.8,2.8304]
[1724174953009,5.24318159,2583.9,2583.8,2.8304]
[1724174953777,12.98340159,2583.9,2583.8,2.8304]
[1724174954600,12.98340159,2583.9,2583.8,0.9381]
[1724174954812,12.98340159,2583.9,2583.8,3.3176]
[1724174955021,12.98340159,2583.9,2583.8,4.15241]
[1724174955022,5.24318159,2583.9,2583.8,4.15241]
[1724174955433,5.24318159,2583.9,2583.8,3.3176]
[1724174956227,9.11329159,2583.9,2583.8,3.3176]
[1724174957891,12.98340159,2583.9,2583.8,3.3176]
[1724174961331,9.11329159,2583.9,2583.8,3.3176]
[1724174962740,7.42629159,2583.9,2583.8,3.3176]
[1724174963052,7.42629159,2583.9,2583.8,3.64936]
[1724174963227,0.55618159,2583.9,2583.8,3.64936]
[1724174963423,0.40526208,2583.9,2583.8,3.64936]
[1724174963748,0.55086944,2583.9,2583.8,3.64936]
[1724174964697,8.29108944,2583.9,2583.8,3.3176]
[1724174968150,4.42097944,2583.9,2583.8,3.3176]
[1724174968945,0.55086944,2583.9,2583.8,3.3176]
[1724174970136,0.14560736,2583.9,2583.8,3.3176]
[1724174970661,0.40522634,2584.2,2584.1,2.7683]
[1724174970887,3.86918,2584.6,2584.1,3.59513]
[1724174971014,3.86918,2584.6,2584.3,0.3881]
[1724174971211,4.27411788,2584.7,2584.5,0.3881]
[1724174971531,5.96111788,2584.7,2584.6,2.9506]
[1724174971731,9.83016788,2584.7,2584.6,2.9506]
[1724174972147,5.96111788,2584.7,2584.6,2.9506]
[1724174972513,8.96111788,2584.7,2584.6,2.9506]
[1724174973534,7.27410788,2584.7,2584.6,2.9506]
[1724174973735,0.40518788,2584.7,2584.6,3.63376]
[1724174975571,0.14617294,2584.7,2584.6,3.63376]
[1724174976073,4.27320369,2585.3,2584.9,2.7887]
[1724174976240,8.14130369,2585.3,2585.1,2.4006]
[1724174976440,8.14130369,2585.3,2585.2,0.55]
[1724174976618,4.27319369,2585.3,2585.2,2.8047]
[1724174977058,7.27319369,2585.3,2585.2,2.8047]
[1724174977236,3.40509369,2585.3,2585.2,2.8047]
[1724174977686,7.27311369,2585.3,2585.2,2.8047]
[1724174980454,4.27311369,2585.3,2585.2,2.8047]
[1724174983987,0.40509369,2585.3,2585.2,2.8047]
[1724174985473,4.27311369,2585.3,2585.2,2.8047]
[1724174985889,8.14113369,2585.3,2585.2,2.8047]
[1724174986511,4.27311369,2585.3,2585.2,2.8047]
[1724174988205,0.40509369,2585.3,2585.2,2.8047]
[1724174989425,0.40509369,2585.3,2585.2,3.47327]
[1724174990049,0.55177436,2585.3,2585.2,3.47327]
[1724174990216,0.55177436,2585.3,2585.2,3.1928]
[1724174994841,8.28781436,2585.3,2585.2,2.8047]
[1724174995183,4.41979436,2585.3,2585.2,2.8047]
[1724174995378,0.55177436,2585.3,2585.2,2.8047]
[1724175000395,4.41979436,2585.3,2585.2,2.8047]
[1724175004358,8.28781436,2585.3,2585.2,2.2547]
[1724175004666,8.28781436,2585.3,2584.6,7.41]
[1724175004667,3.86853,2585.0,2584.8,2.6645]
[1724175005009,3.86819,2585.2,2584.8,2.6645]
[1724175005507,3.86833,2585.1,2584.8,2.6645]
[1724175005674,3.86818,2585.2,2584.8,2.6645]
[1724175005881,3.86818,2585.2,2585.1,2.2769]
[1724175006074,6.86818,2585.2,2585.1,2.8269]
[1724175006400,6.86818,2585.2,2585.1,3.215]
[1724175006401,3.0,2585.2,2585.1,3.215]
[1724175006699,1.686,2585.2,2585.1,3.215]
[1724175006907,0.55177436,2585.3,2585.2,2.2776]
[1724175007063,0.55177436,2585.3,2585.2,2.8276]
[1724175009263,4.41979436,2585.3,2585.2,2.8276]
[1724175009465,7.41979436,2585.3,2585.2,2.8276]
[1724175013397,4.41979436,2585.3,2585.2,2.8276]
[1724175014670,4.41979436,2585.3,2585.2,3.67256]
[1724175014671,0.14668067,2585.3,2585.2,3.67256]
[1724175015308,0.14668067,2585.3,2585.2,3.3898]
[1724175018109,4.01470067,2585.3,2585.2,3.3898]
[1724175018437,4.01470067,2585.3,2584.9,0.3881]
[1724175018438,3.86847,2585.0,2584.9,0.3881]
[1724175018585,9.42294,2585.0,2584.9,0.3881]
[1724175018895,9.42294,2585.0,2584.9,2.7686]
[1724175018896,12.56990998,2585.0,2584.9,2.7686]
[1724175019086,12.56990998,2585.0,2584.9,2.3805]
[1724175019279,12.56990998,2585.0,2584.9,2.7686]
[1724175019622,12.56990998,2585.0,2584.9,2.3805]
[1724175020494,12.56990998,2585.0,2584.9,2.7686]
[1724175020822,12.56990998,2585.0,2584.9,3.3186]
[1724175021883,12.56990998,2585.0,2584.9,0.55]
[1724175022175,7.73737,2584.9,2584.8,0.55]
[1724175022308,10.73737,2584.9,2584.8,0.55]
[1724175022507,10.87911941,2584.9,2584.8,0.55]
[1724175023133,7.01036941,2584.9,2584.5,2.8671]
[1724175023447,5.55507,2584.6,2584.5,2.8671]
[1724175023602,8.55507,2584.6,2584.5,2.8671]
[1724175023941,3.14158785,2584.6,2584.5,2.8671]
[1724175024940,0.14157837,2584.6,2584.5,3.4171]
[1724175026839,0.14157837,2584.6,2584.5,3.75881]
[1724175027849,0.14157837,2584.6,2584.5,3.4171]
[1724175028908,4.01064837,2584.6,2584.5,3.4171]
[1724175029698,0.14157837,2584.6,2584.5,3.4171]
[1724175030223,1.82757837,2584.6,2584.5,3.4171]
[1724175030645,5.69664837,2584.6,2584.5,3.4171]
[1724175032120,4.01064837,2584.6,2584.5,3.4171]
[1724175032733,0.14157837,2584.6,2584.5,3.4171]
[1724175032951,0.14157837,2584.6,2584.5,3.75881]
[1724175033542,3.86834,2585.1,2584.5,1.27981]
[1724175033888,3.86834,2585.1,2584.9,0.3881]
[1724175034030,3.86834,2585.1,2585.0,3.4025]
[1724175034233,3.86834,2585.1,2585.0,2.8525]
[1724175034499,0.40509733,2585.2,2585.0,3.4025]
[1724175034657,0.40509733,2585.2,2585.1,2.9316]
[1724175034981,0.40509733,2585.2,2585.1,3.3197]
[1724175037347,0.54659862,2585.2,2585.1,3.3197]
[1724175037548,0.54659862,2585.2,2585.1,3.65167]
[1724175037743,0.14150129,2585.2,2585.1,3.65167]
[1724175038005,5.55387,2585.4,2585.2,2.6724]
[1724175038225,5.55387,2585.4,2585.3,0.55]
[1724175039354,5.55387,2585.4,2585.3,0.9381]
[1724175040808,9.42181,2585.4,2585.3,0.9381]
[1724175040969,12.42181,2585.4,2585.3,0.55]
[1724175041855,4.686,2585.4,2585.3,3.386]
[1724175042114,1.686,2585.4,2585.3,3.386]
[1724175042662,5.55387,2585.4,2585.3,3.386]
[1724175047066,3.86775,2585.5,2585.4,2.4315]
[1724175047268,6.86775,2585.5,2585.4,3.3696]
[1724175052298,7.00951242,2585.5,2585.4,3.3696]
[1724175055223,10.87731242,2585.5,2585.4,3.3696]
[1724175055616,10.87731242,2585.5,2585.4,2.9815]
[1724175057865,3.14176242,2585.5,2585.0,2.2674]
[1724175058153,9.42264,2585.1,2585.0,2.2674]
[1724175058354,9.56443378,2585.1,2585.0,2.2674]
[1724175058573,12.56443378,2585.1,2585.0,2.2674]
[1724175058711,7.73784,2584.7,2584.6,2.2674]
[1724175058914,9.56570014,2584.7,2584.6,2.2674]
[1724175060157,12.56570014,2584.7,2584.6,2.2674]
[1724175060456,3.86965,2584.3,2584.2,0.3881]
[1724175060668,1.686,2584.3,2584.2,2.6555]
[1724175060851,0.14141395,2584.3,2584.2,2.92105]
[1724175061507,5.69692395,2584.3,2584.2,2.92105]
[1724175061708,1.82741395,2584.3,2584.2,3.2055]
[1724175062455,5.69692395,2584.3,2584.2,3.2055]
[1724175062767,0.14141395,2584.3,2584.2,3.2055]
[1724175064278,4.01092395,2584.3,2584.2,3.2055]
[1724175064566,0.14141395,2584.3,2584.2,3.2055]
[1724175066841,0.14141395,2584.3,2584.2,3.52605]
[1724175067215,3.86925,2584.5,2584.4,0.3881]
[1724175067608,3.86925,2584.5,2584.4,3.2072]
[1724175068804,4.686,2584.6,2584.4,0.9381]
[1724175068805,8.55507,2584.6,2584.4,0.9381]
[1724175068990,8.55507,2584.6,2584.5,3.2424]
[1724175069969,1.686,2584.8,2584.7,0.3881]
[1724175070171,5.55448,2585.0,2584.8,2.7124]
[1724175070408,5.55448,2585.0,2584.9,0.9381]
[1724175070609,5.55418,2585.2,2584.9,3.58864]
[1724175070758,5.55418,2585.2,2585.0,2.7597]
[1724175071097,5.55418,2585.2,2585.1,2.9216]
[1724175072393,8.55418,2585.2,2585.1,2.9216]
[1724175072920,1.686,2585.2,2585.1,2.9216]
[1724175073282,5.55417,2585.2,2585.1,2.9216]
[1724175073588,3.86804,2585.3,2585.2,2.3716]
[1724175073824,3.86804,2585.3,2585.2,3.3097]
[1724175076235,5.9589583,2585.4,2585.3,2.8213]
[1724175076442,8.9589583,2585.4,2585.3,3.3713]
[1724175076974,5.0910783,2585.4,2585.3,3.3997]
[1724175077695,8.9589483,2585.4,2585.3,3.3997]
[1724175080430,8.9589483,2585.4,2585.3,3.768886]
[1724175080923,8.9589483,2585.4,2585.3,3.3997]
[1724175082041,3.4050783,2585.4,2585.3,3.3997]
[1724175082330,0.54180792,2585.4,2585.3,3.3997]
[1724175083622,3.54180792,2585.4,2585.3,3.3997]
[1724175084729,7.40967792,2585.4,2585.3,3.3997]
[1724175090429,3.54180792,2585.4,2585.3,3.3997]
[1724175090581,3.54180792,2585.4,2585.3,3.73967]
[1724175090582,0.54180792,2585.4,2585.3,3.73967]
[1724175091647,4.40967792,2585.4,2585.3,3.73967]
[1724175095805,0.54180792,2585.4,2585.3,3.73967]
[1724175098215,0.54180792,2585.4,2585.3,3.3997]
[1724175101286,4.40967792,2585.4,2585.3,3.3997]
[1724175103278,4.40967792,2585.4,2585.3,2.4616]
[1724175103279,11.27754792,2585.4,2585.3,2.4616]
[1724175103472,8.27754792,2585.4,2585.3,2.4616]
[1724175103671,11.27754792,2585.4,2585.3,2.4616]
[1724175103871,7.40967792,2585.4,2585.3,2.4616]
[1724175104194,9.09567792,2585.4,2585.3,2.8496]
[1724175104579,12.96354792,2585.4,2585.3,2.8496]
[1724175104958,12.96354792,2585.4,2585.3,3.3996]
[1724175108176,9.09567792,2585.4,2585.3,3.3996]
[1724175109408,6.09567792,2585.4,2585.3,3.3996]
[1724175114586,2.22780792,2585.4,2585.3,3.3996]
[1724175116814,6.09567792,2585.4,2585.3,3.3996]
[1724175117031,9.96354792,2585.4,2585.3,3.3996]
[1724175117489,9.96354792,2585.4,2585.3,3.0116]
[1724175117999,9.96354792,2585.4,2585.3,3.3996]
[1724175122000,9.55846962,2585.4,2585.3,3.3996]
[1724175122817,12.55846962,2585.4,2585.3,0.938]
[1724175124243,12.55846962,2585.4,2585.3,3.321]
[1724175124908,8.69059962,2585.4,2585.3,3.321]
[1724175125204,7.00459962,2585.4,2585.3,3.321]
[1724175125412,4.00459962,2585.4,2585.3,3.321]
[1724175125659,5.69059962,2585.4,2585.3,3.321]
[1724175127102,0.13672962,2585.4,2585.3,3.321]
[1724175127338,0.13672962,2585.4,2585.3,3.6531]
[1724175127512,5.55358,2585.6,2585.4,2.6553]
[1724175127729,5.55358,2585.6,2585.5,0.55]
[1724175127944,8.55358,2585.6,2585.5,0.55]
[1724175129622,8.55358,2585.6,2585.5,2.9321]
[1724175135176,3.0,2585.6,2585.5,2.9321]
[1724175135462,6.86757,2585.6,2585.5,2.9321]
[1724175137962,10.73514,2585.6,2585.5,2.9321]
[1724175138871,10.73514,2585.6,2585.5,2.3821]
[1724175139164,14.60271,2585.6,2585.5,2.3821]
[1724175139667,14.60271,2585.6,2585.1,2.8073]
[1724175139668,7.73634,2585.2,2585.1,2.8073]
[1724175139848,5.55417,2585.2,2585.1,2.8073]
[1724175140737,3.8678,2585.5,2585.3,0.388]
[1724175140942,8.55359,2585.6,2585.5,2.3133]
[1724175141258,12.42123,2585.6,2585.5,2.8633]
[1724175142438,12.55833727,2585.6,2585.5,2.8633]
[1724175143996,8.69069727,2585.6,2585.5,2.8633]
[1724175145467,3.13710727,2585.6,2585.5,3.14963]
[1724175145790,1.82310727,2585.6,2585.5,3.14963]
[1724175146897,5.69067727,2585.6,2585.5,3.14963]
[1724175147107,5.69067727,2585.6,2585.5,2.8633]
[1724175149985,9.55824727,2585.6,2585.5,2.3133]
[1724175150299,16.42581727,2585.6,2585.5,2.3133]
[1724175150506,3.86817,2585.2,2585.1,0.388]
[1724175150708,5.55417,2585.2,2585.1,0.388]
[1724175150910,9.55900896,2585.2,2585.1,0.388]
[1724175151126,12.55900896,2585.2,2585.1,2.7807]
[1724175151596,8.69083896,2585.2,2585.1,2.7807]
[1724175152784,0.13666896,2585.2,2585.1,2.7807]